fUST/lending_fUST_20250210
["ID","MTS","AMOUNT","RATE_DAILY","PERIOD"]
[352571103,1739173847330,-500.0,0.00012191,2]
[352571104,1739173847341,-700.89,0.00012191,2]
[352571105,1739173847351,-500.0,0.00012191,2]
[352571106,1739173847362,-500.0,0.00012191,2]
[352571107,1739173847372,-587.98,0.00012191,2]
[352571108,1739173847383,-205.46926548,0.00012191,2]
[352571109,1739173847394,-1948.67,0.00012191,2]
[352571110,1739173847408,-886.37,0.00012191,2]
[352571111,1739173847418,-580.76542839,0.00012191,2]
[352571112,1739173847428,-500.0,0.00012191,2]
[352571113,1739173847438,-11555.29,0.00012191,2]
[352571114,1739173847450,-3567.19,0.00012191,2]
[352571115,1739173847460,-1981.93,0.00012191,2]
[352571116,1739173847469,-1014.01,0.00012191,2]
[352571117,1739173847481,-500.0,0.00012191,2]
[352571118,1739173847492,-151.0,0.000123,2]
[352571119,1739173847502,-500.0,0.00012328,2]
[352571120,1739173847512,-395.01240429,0.00012328,2]
[352571121,1739173847523,-500.0,0.00012328,2]
[352571122,1739173847534,-500.0,0.00012328,2]
[352571123,1739173847544,-566.83,0.00012328,2]
[352571124,1739173847554,-500.0,0.00012328,2]
[352571125,1739173847569,-500.0,0.00012328,2]
[352571126,1739173847580,-598.1,0.00012328,2]
[352571127,1739173847591,-500.0,0.00012328,2]
[352571128,1739173847602,-500.0,0.00012328,2]
[352571129,1739173847612,-151.0,0.00012328,2]
[352571130,1739173847622,-636.99,0.00012328,2]
[352571131,1739173847633,-753.01,0.00012328,2]
[352571132,1739173847644,-151.0,0.00012328,2]
[352571133,1739173847654,-500.0,0.00012328,2]
[352571134,1739173847664,-151.0,0.00012328,2]
[352571135,1739173847675,-151.0,0.00012328,2]
[352571136,1739173847685,-500.0,0.00012328,2]
[352571137,1739173847695,-500.0,0.00012328,2]
[352571138,1739173847706,-500.0,0.00012328,2]
[352571139,1739173847716,-500.0,0.00012328,2]
[352571140,1739173847727,-500.0,0.00012328,2]
[352571141,1739173847739,-500.0,0.00012328,2]
[352571142,1739173847750,-582.61,0.00012328,2]
[352571143,1739173847760,-500.0,0.00012328,2]
[352571144,1739173847770,-500.0,0.00012328,2]
[352571145,1739173847781,-1011.4,0.00012328,2]
[352571146,1739173847791,-500.0,0.00012328,2]
[352571147,1739173847803,-500.0,0.00012328,2]
[352571148,1739173847813,-500.0,0.00012328,2]
[352571149,1739173847827,-500.0,0.00012328,2]
[352571150,1739173847837,-500.0,0.00012328,2]
[352571151,1739173847848,-2327.36,0.00012328,2]
[352571152,1739173847858,-2167.03,0.00012328,2]
[352571153,1739173847868,-500.0,0.00012328,2]
[352571154,1739173847878,-1786.78,0.00012328,2]
[352571155,1739173847888,-500.0,0.00012328,2]
[352571156,1739173847900,-1046.24,0.00012328,2]
[352571157,1739173847910,-737.05,0.00012328,2]
[352571158,1739173847919,-629.21288575,0.00012328,2]
[352571159,1739173847930,-699.77,0.00012328,2]
[352571160,1739173847940,-500.0,0.00012328,2]
[352571161,1739173847951,-889.57,0.00012328,2]
[352571162,1739173847962,-500.0,0.00012328,2]
[352571163,1739173847973,-24674.75,0.00012328,2]
[352571164,1739173847983,-1381.02,0.00012328,2]
[352571165,1739173847994,-3775.41,0.00012328,2]
[352571166,1739173848005,-1106.43,0.00012328,2]
[352571167,1739173848016,-615.18,0.00012328,2]
[352571168,1739173848026,-500.0,0.00012328,2]
[352571169,1739173848037,-1821.24,0.00012328,2]
[352571170,1739173848048,-586.55,0.00012328,2]
[352571171,1739173848059,-612.13,0.00012328,2]
[352571172,1739173848074,-500.0,0.00012328,2]
[352571173,1739173848084,-5292.78,0.00012328,2]
[352571174,1739173848096,-1628.02,0.00012328,2]
[352571175,1739173848109,-500.0,0.00012328,2]
[352571176,1739173848120,-500.0,0.00012328,2]
[352571177,1739173848131,-837.58,0.00012328,2]
[352571178,1739173848142,-762.41,0.00012328,2]
[352571179,1739173848150,-1904.32,0.00012328,2]
[352571180,1739173848161,-849.42,0.00012328,2]
[352571181,1739173848172,-925.35,0.00012328,2]
[352571182,1739173848183,-878.8,0.00012328,2]
[352571183,1739173848193,-1541.79,0.00012328,2]
[352571184,1739173848203,-500.0,0.00012328,2]
[352571185,1739173848214,-500.0,0.00012328,2]
[352571186,1739173848224,-700.89,0.00012328,2]
[352571187,1739173848235,-500.0,0.00012328,2]
[352571188,1739173848246,-500.0,0.00012328,2]
[352571189,1739173848258,-587.98,0.00012328,2]
[352571190,1739173848270,-1948.67,0.00012328,2]
[352571191,1739173848280,-886.37,0.00012328,2]
[352571192,1739173848290,-599.18727519,0.00012328,2]
[352571193,1739173848300,-11555.29,0.00012328,2]
[352571194,1739173848310,-3567.19,0.00012328,2]
[352571195,1739173848324,-1981.93,0.00012328,2]
[352571196,1739173848335,-1014.01,0.00012328,2]
[352571197,1739173848346,-500.0,0.00012328,2]
[352571198,1739173848357,-1000.0,0.00012396,2]
[352571199,1739173848474,-500.0,0.00012465,2]
[352571200,1739173848487,-596.65,0.00012465,2]
[352571201,1739173848498,-566.83,0.00012465,2]
[352571202,1739173848508,-500.0,0.00012465,2]
[352571203,1739173848519,-500.0,0.00012465,2]
[352571204,1739173848531,-598.1,0.00012465,2]
[352571205,1739173848542,-500.0,0.00012465,2]
[352571206,1739173848552,-500.0,0.00012465,2]
[352571207,1739173848563,-636.99,0.00012465,2]
[352571208,1739173848577,-753.01,0.00012465,2]
[352571209,1739173848589,-620.75555883,0.00012465,2]
[352571210,1739173848600,-500.0,0.00012465,2]
[352571211,1739173848610,-500.0,0.00012465,2]
[352571212,1739173848623,-500.0,0.00012465,2]
[352571213,1739173848635,-500.0,0.00012465,2]
[352571214,1739173848649,-500.0,0.00012465,2]
[352571215,1739173848662,-500.0,0.00012465,2]
[352571216,1739173848673,-582.61,0.00012465,2]
[352571217,1739173848685,-500.0,0.00012465,2]
[352571218,1739173848695,-500.0,0.00012465,2]
[352571219,1739173848705,-1011.4,0.00012465,2]
[352571220,1739173848715,-500.0,0.00012465,2]
[352571221,1739173848726,-500.0,0.00012465,2]
[352571222,1739173848736,-151.0,0.00012465,2]
[352571223,1739173848746,-500.0,0.00012465,2]
[352571224,1739173848756,-500.0,0.00012465,2]
[352571225,1739173848767,-182.863275,0.00012465,2]
[352571226,1739173848776,-182.863275,0.00012465,2]
[352571227,1739173848787,-500.0,0.00012465,2]
[352571228,1739173848796,-151.0,0.00012465,2]
[352571229,1739173848806,-151.0,0.00012465,2]
[352571230,1739173848816,-2327.36,0.00012465,2]
[352571231,1739173848827,-2167.03,0.00012465,2]
[352571232,1739173848838,-500.0,0.00012465,2]
[352571233,1739173848848,-1786.78,0.00012465,2]
[352571234,1739173848858,-500.0,0.00012465,2]
[352571235,1739173848871,-1046.24,0.00012465,2]
[352571236,1739173848881,-737.05,0.00012465,2]
[352571237,1739173848893,-699.77,0.00012465,2]
[352571238,1739173848904,-500.0,0.00012465,2]
[352571239,1739173848915,-889.57,0.00012465,2]
[352571240,1739173848926,-500.0,0.00012465,2]
[352571241,1739173848938,-24674.75,0.00012465,2]
[352571242,1739173848948,-1381.02,0.00012465,2]
[352571243,1739173848959,-3775.41,0.00012465,2]
[352571244,1739173848971,-1106.43,0.00012465,2]
[352571245,1739173848981,-319.110338,0.00012465,2]
[352571246,1739173848992,-615.18,0.00012465,2]
[352571247,1739173849003,-500.0,0.00012465,2]
[352571248,1739173849013,-319.110338,0.00012465,2]
[352571249,1739173849024,-1821.24,0.00012465,2]
[352571250,1739173849035,-586.55,0.00012465,2]
[352571251,1739173849045,-612.13,0.00012465,2]
[352571252,1739173849056,-500.0,0.00012465,2]
[352571253,1739173849067,-5292.78,0.00012465,2]
[352571254,1739173849080,-1628.02,0.00012465,2]
[352571255,1739173849091,-500.0,0.00012465,2]
[352571256,1739173849103,-500.0,0.00012465,2]
[352571257,1739173849114,-837.58,0.00012465,2]
[352571258,1739173849124,-762.41,0.00012465,2]
[352571259,1739173849135,-1904.32,0.00012465,2]
[352571260,1739173849146,-849.42,0.00012465,2]
[352571261,1739173849157,-925.35,0.00012465,2]
[352571262,1739173849167,-878.8,0.00012465,2]
[352571263,1739173849179,-1541.79,0.00012465,2]
[352571264,1739173849190,-500.0,0.00012465,2]
[352571265,1739173849201,-500.0,0.00012465,2]
[352571266,1739173849211,-700.89,0.00012465,2]
[352571267,1739173849222,-500.0,0.00012465,2]
[352571268,1739173849233,-161.424521,0.00012465,2]
[352571269,1739173849243,-500.0,0.00012465,2]
[352571270,1739173849253,-161.424521,0.00012465,2]
[352571271,1739173849263,-587.98,0.00012465,2]
[352571272,1739173849273,-1948.67,0.00012465,2]
[352571273,1739173849283,-151.0,0.00012465,2]
[352571274,1739173849292,-886.37,0.00012465,2]
[352571275,1739173849302,-315.574191,0.00012465,2]
[352571276,1739173849312,-315.574191,0.00012465,2]
[352571277,1739173849323,-675.282182,0.00012465,2]
[352571278,1739173849333,-11555.29,0.00012465,2]
[352571279,1739173849343,-675.282182,0.00012465,2]
[352571280,1739173849352,-3567.19,0.00012465,2]
[352571281,1739173849362,-1981.93,0.00012465,2]
[352571282,1739173849372,-1014.01,0.00012465,2]
[352571283,1739173849382,-151.0,0.000125,2]
[352571284,1739173849391,-372.43024915,0.00012562,2]
[352571285,1739173849405,-500.0,0.00012602,2]
[352571286,1739173849416,-566.83,0.00012602,2]
[352571287,1739173849426,-500.0,0.00012602,2]
[352571288,1739173849436,-500.0,0.00012602,2]
[352571289,1739173849446,-598.1,0.00012602,2]
[352571290,1739173849456,-500.0,0.00012602,2]
[352571291,1739173849466,-500.0,0.00012602,2]
[352571292,1739173849477,-636.99,0.00012602,2]
[352571293,1739173849487,-753.01,0.00012602,2]
[352571294,1739173849497,-500.0,0.00012602,2]
[352571295,1739173849507,-500.0,0.00012602,2]
[352571296,1739173849517,-500.0,0.00012602,2]
[352571297,1739173849527,-500.0,0.00012602,2]
[352571298,1739173849537,-500.0,0.00012602,2]
[352571299,1739173849547,-582.61,0.00012602,2]
[352571300,1739173849557,-500.0,0.00012602,2]
[352571301,1739173849567,-500.0,0.00012602,2]
[352571302,1739173849579,-1011.4,0.00012602,2]
[352571303,1739173849589,-295.2,0.00012602,2]
[352571304,1739173849599,-151.0,0.00012602,2]
[352571305,1739173849609,-151.0,0.00012602,2]
[352571306,1739173849620,-500.0,0.00012602,2]
[352571307,1739173849630,-468.488411,0.00012602,2]
[352571308,1739173849640,-468.488411,0.00012602,2]
[352571309,1739173849650,-196.64190154,0.00012602,2]
[352571310,1739173849660,-500.0,0.00012602,2]
[352571311,1739173849670,-2327.36,0.00012602,2]
[352571312,1739173849680,-2167.03,0.00012602,2]
[352571313,1739173849690,-500.0,0.00012602,2]
[352571314,1739173849699,-1786.78,0.00012602,2]
[352571315,1739173849709,-500.0,0.00012602,2]
[352571316,1739173849719,-1046.24,0.00012602,2]
[352571317,1739173849729,-737.05,0.00012602,2]
[352571318,1739173849738,-699.77,0.00012602,2]
[352571319,1739173849749,-889.57,0.00012602,2]
[352571320,1739173849759,-500.0,0.00012602,2]
[352571321,1739173849769,-5436.46818549,0.00012602,2]
[352571322,1739173849917,-19238.28181451,0.00012602,2]
[352571323,1739173849927,-1381.02,0.00012602,2]
[352571324,1739173849940,-3775.41,0.00012602,2]
[352571325,1739173849950,-1106.43,0.00012602,2]
[352571326,1739173849958,-615.18,0.00012602,2]
[352571327,1739173849968,-500.0,0.00012602,2]
[352571328,1739173849978,-1821.24,0.00012602,2]
[352571329,1739173849987,-586.55,0.00012602,2]
[352571330,1739173849996,-612.13,0.00012602,2]
[352571331,1739173850006,-500.0,0.00012602,2]
[352571332,1739173850015,-5292.78,0.00012602,2]
[352571333,1739173850025,-1628.02,0.00012602,2]
[352571334,1739173850035,-500.0,0.00012602,2]
[352571335,1739173850044,-356.84,0.00012602,2]
[352571336,1739173850053,-837.58,0.00012602,2]
[352571337,1739173850063,-762.41,0.00012602,2]
[352571338,1739173850072,-1904.32,0.00012602,2]
[352571339,1739173850081,-849.42,0.00012602,2]
[352571340,1739173850090,-925.35,0.00012602,2]
[352571341,1739173850098,-878.8,0.00012602,2]
[352571342,1739173850106,-1541.79,0.00012602,2]
[352571343,1739173850114,-500.0,0.00012602,2]
[352571344,1739173850122,-500.0,0.00012602,2]
[352571345,1739173850131,-700.89,0.00012602,2]
[352571346,1739173850139,-500.0,0.00012602,2]
[352571347,1739173850147,-500.0,0.00012602,2]
[352571348,1739173850155,-587.98,0.00012602,2]
[352571349,1739173850163,-1948.67,0.00012602,2]
[352571350,1739173850171,-886.37,0.00012602,2]
[352571351,1739173850179,-11555.29,0.00012602,2]
[352571352,1739173850188,-3567.19,0.00012602,2]
[352571353,1739173850197,-1981.93,0.00012602,2]
[352571354,1739173850207,-1014.01,0.00012602,2]
[352571355,1739173850216,-500.0,0.00012654,2]
[352571356,1739173850225,-500.0,0.00012655,2]
[352571357,1739173850235,-911.6878396,0.00012655,2]
[352571358,1739173850244,-1000.56880759,0.00012655,2]
[352571359,1739173850253,-503.21350288,0.0001267,2]
[352571360,1739173850263,-500.0,0.0001267,2]
[352571361,1739173850272,-151.0,0.000127,2]
[352571362,1739173850281,-1000.0,0.000127,2]
[352571363,1739173850290,-500.0,0.00012717,2]
[352571364,1739173850299,-528.49169087,0.00012717,2]
[352571365,1739173850307,-500.0,0.00012717,2]
[352571366,1739173850316,-500.0,0.00012739,2]
[352571367,1739173850325,-151.0,0.00012739,2]
[352571368,1739173850335,-151.0,0.00012739,2]
[352571369,1739173850345,-274.824507,0.00012739,2]
[352571370,1739173850354,-566.83,0.00012739,2]
[352571371,1739173850449,-151.0,0.00012739,2]
[352571372,1739173850459,-320.0,0.00012739,2]
[352571373,1739173850468,-500.0,0.00012739,2]
[352571374,1739173850478,-598.1,0.00012739,2]
[352571375,1739173850488,-500.0,0.00012739,2]
[352571376,1739173850497,-151.0,0.00012739,2]
[352571377,1739173850506,-636.99,0.00012739,2]
[352571378,1739173850516,-753.01,0.00012739,2]
[352571379,1739173850525,-151.0,0.00012739,2]
[352571380,1739173850535,-151.0,0.00012739,2]
[352571381,1739173850544,-151.0,0.00012739,2]
[352571382,1739173850553,-500.0,0.00012739,2]
[352571383,1739173850562,-323.10117771,0.00012739,2]
[352571384,1739173850572,-500.0,0.00012739,2]
[352571385,1739173850582,-500.0,0.00012739,2]
[352571386,1739173850592,-151.481,0.00012739,2]
[352571387,1739173850601,-500.0,0.00012739,2]
[352571388,1739173850611,-151.0,0.00012739,2]
[352571389,1739173850620,-151.0,0.00012739,2]
[352571390,1739173850629,-582.61,0.00012739,2]
[352571391,1739173850638,-500.0,0.00012739,2]
[352571392,1739173850648,-500.0,0.00012739,2]
[352571393,1739173850657,-1011.4,0.00012739,2]
[352571394,1739173850666,-500.0,0.00012739,2]
[352571395,1739173850676,-500.0,0.00012739,2]
[352571396,1739173850686,-2327.36,0.00012739,2]
[352571397,1739173850695,-2167.03,0.00012739,2]
[352571398,1739173850705,-500.0,0.00012739,2]
[352571399,1739173850715,-1786.78,0.00012739,2]
[352571400,1739173850725,-500.0,0.00012739,2]
[352571401,1739173850735,-1046.24,0.00012739,2]
[352571402,1739173850744,-737.05,0.00012739,2]
[352571403,1739173850754,-699.77,0.00012739,2]
[352571404,1739173850763,-889.57,0.00012739,2]
[352571405,1739173850772,-24674.75,0.00012739,2]
[352571406,1739173850783,-1381.02,0.00012739,2]
[352571407,1739173850792,-3775.41,0.00012739,2]
[352571408,1739173850801,-1106.43,0.00012739,2]
[352571409,1739173850810,-615.18,0.00012739,2]
[352571410,1739173850822,-500.0,0.00012739,2]
[352571411,1739173850831,-1821.24,0.00012739,2]
[352571412,1739173850841,-586.55,0.00012739,2]
[352571413,1739173850851,-612.13,0.00012739,2]
[352571414,1739173850861,-500.0,0.00012739,2]
[352571415,1739173850871,-5292.78,0.00012739,2]
[352571416,1739173850881,-1628.02,0.00012739,2]
[352571417,1739173850890,-500.0,0.00012739,2]
[352571418,1739173850899,-837.58,0.00012739,2]
[352571419,1739173850909,-762.41,0.00012739,2]
[352571420,1739173850918,-1904.32,0.00012739,2]
[352571421,1739173850928,-849.42,0.00012739,2]
[352571422,1739173850937,-925.35,0.00012739,2]
[352571423,1739173850947,-878.8,0.00012739,2]
[352571424,1739173850956,-1541.79,0.00012739,2]
[352571425,1739173850965,-500.0,0.00012739,2]
[352571426,1739173850974,-500.0,0.00012739,2]
[352571427,1739173850984,-700.89,0.00012739,2]
[352571428,1739173850996,-500.0,0.00012739,2]
[352571429,1739173851010,-587.98,0.00012739,2]
[352571430,1739173851020,-1948.67,0.00012739,2]
[352571431,1739173851030,-886.37,0.00012739,2]
[352571432,1739173851040,-11555.29,0.00012739,2]
[352571433,1739173851049,-3567.19,0.00012739,2]
[352571434,1739173851058,-1981.93,0.00012739,2]
[352571435,1739173851068,-1014.01,0.00012739,2]
[352571436,1739173851078,-281.80556329,0.00012876,2]
[352571437,1739173851088,-566.83,0.00012876,2]
[352571438,1739173851097,-500.0,0.00012876,2]
[352571439,1739173851107,-598.1,0.00012876,2]
[352571440,1739173851116,-500.0,0.00012876,2]
[352571441,1739173851125,-636.99,0.00012876,2]
[352571442,1739173851135,-753.01,0.00012876,2]
[352571443,1739173851144,-500.0,0.00012876,2]
[352571444,1739173851153,-500.0,0.00012876,2]
[352571445,1739173851163,-500.0,0.00012876,2]
[352571446,1739173851172,-500.0,0.00012876,2]
[352571447,1739173851181,-582.61,0.00012876,2]
[352571448,1739173851190,-500.0,0.00012876,2]
[352571449,1739173851199,-500.0,0.00012876,2]
[352571450,1739173851208,-1011.4,0.00012876,2]
[352571451,1739173851218,-500.0,0.00012876,2]
[352571452,1739173851227,-500.0,0.00012876,2]
[352571453,1739173851236,-151.0,0.00012876,2]
[352571454,1739173851246,-2327.36,0.00012876,2]
[352571455,1739173851256,-2167.03,0.00012876,2]
[352571456,1739173851265,-500.0,0.00012876,2]
[352571457,1739173851274,-1786.78,0.00012876,2]
[352571458,1739173851284,-352.11,0.00012876,2]
[352571459,1739173851293,-1046.24,0.00012876,2]
[352571460,1739173851303,-737.05,0.00012876,2]
[352571461,1739173851312,-699.77,0.00012876,2]
[352571462,1739173851321,-889.57,0.00012876,2]
[352571463,1739173851330,-24674.75,0.00012876,2]
[352571464,1739173851340,-1381.02,0.00012876,2]
[352571465,1739173851350,-3775.41,0.00012876,2]
[352571466,1739173851359,-1106.43,0.00012876,2]
[352571467,1739173851368,-615.18,0.00012876,2]
[352571468,1739173851377,-500.0,0.00012876,2]
[352571469,1739173851386,-1821.24,0.00012876,2]
[352571470,1739173851396,-586.55,0.00012876,2]
[352571471,1739173851409,-612.13,0.00012876,2]
[352571472,1739173851418,-500.0,0.00012876,2]
[352571473,1739173851427,-5292.78,0.00012876,2]
[352571474,1739173851437,-1628.02,0.00012876,2]
[352571475,1739173851448,-500.0,0.00012876,2]
[352571476,1739173851457,-837.58,0.00012876,2]
[352571477,1739173851466,-762.41,0.00012876,2]
[352571478,1739173851475,-1904.32,0.00012876,2]
[352571479,1739173851485,-849.42,0.00012876,2]
[352571480,1739173851495,-925.35,0.00012876,2]
[352571481,1739173851504,-878.8,0.00012876,2]
[352571482,1739173851513,-1541.79,0.00012876,2]
[352571483,1739173851522,-203.28813587,0.00012876,2]
[352571484,1739173851531,-500.0,0.00012876,2]
[352571485,1739173851541,-700.89,0.00012876,2]
[352571486,1739173851550,-314.91390867,0.00012876,2]
[352571487,1739173851559,-587.98,0.00012876,2]
[352571488,1739173851569,-1948.67,0.00012876,2]
[352571489,1739173851579,-151.0,0.00012876,2]
[352571490,1739173851588,-886.37,0.00012876,2]
[352571491,1739173851598,-315.574191,0.00012876,2]
[352571492,1739173851607,-315.574191,0.00012876,2]
[352571493,1739173851616,-11555.29,0.00012876,2]
[352571494,1739173851626,-3567.19,0.00012876,2]
[352571495,1739173851635,-1981.93,0.00012876,2]
[352571496,1739173851644,-1014.01,0.00012876,2]
[352571497,1739173851653,-1180.84817504,0.000129,2]
[352571498,1739173851663,-1180.84817499,0.000129,2]
[352571499,1739173851672,-1180.84817499,0.000129,2]
[352571500,1739173851681,-566.83,0.00013013,2]
[352571501,1739173851691,-500.0,0.00013013,2]
[352571502,1739173851700,-598.1,0.00013013,2]
[352571503,1739173851709,-500.0,0.00013013,2]
[352571504,1739173851719,-636.99,0.00013013,2]
[352571505,1739173851728,-753.01,0.00013013,2]
[352571506,1739173851737,-500.0,0.00013013,2]
[352571507,1739173851747,-500.0,0.00013013,2]
[352571508,1739173851757,-500.0,0.00013013,2]
[352571509,1739173851769,-500.0,0.00013013,2]
[352571510,1739173851778,-582.61,0.00013013,2]
[352571511,1739173851787,-500.0,0.00013013,2]
[352571512,1739173851796,-500.0,0.00013013,2]
[352571513,1739173851806,-1011.4,0.00013013,2]
[352571514,1739173851815,-227.613648,0.00013013,2]
[352571515,1739173851825,-151.0,0.00013013,2]
[352571516,1739173851834,-468.488411,0.00013013,2]
[352571517,1739173851843,-500.0,0.00013013,2]
[352571518,1739173851853,-468.488411,0.00013013,2]
[352571519,1739173851863,-182.863275,0.00013013,2]
[352571520,1739173851872,-182.863275,0.00013013,2]
[352571521,1739173851882,-500.0,0.00013013,2]
[352571522,1739173851891,-151.0,0.00013013,2]
[352571523,1739173851900,-2327.36,0.00013013,2]
[352571524,1739173851910,-2167.03,0.00013013,2]
[352571525,1739173851919,-500.0,0.00013013,2]
[352571526,1739173851929,-1786.78,0.00013013,2]
[352571527,1739173851939,-1046.24,0.00013013,2]
[352571528,1739173851948,-737.05,0.00013013,2]
[352571529,1739173851957,-699.77,0.00013013,2]
[352571530,1739173851966,-889.57,0.00013013,2]
[352571531,1739173851975,-24674.75,0.00013013,2]
[352571532,1739173851985,-1381.02,0.00013013,2]
[352571533,1739173851994,-3775.41,0.00013013,2]
[352571534,1739173852003,-1106.43,0.00013013,2]
[352571535,1739173852012,-319.110338,0.00013013,2]
[352571536,1739173852021,-615.18,0.00013013,2]
[352571537,1739173852031,-500.0,0.00013013,2]
[352571538,1739173852040,-319.110338,0.00013013,2]
[352571539,1739173852049,-1821.24,0.00013013,2]
[352571540,1739173852058,-586.55,0.00013013,2]
[352571541,1739173852067,-612.13,0.00013013,2]
[352571542,1739173852079,-500.0,0.00013013,2]
[352571543,1739173852088,-5292.78,0.00013013,2]
[352571544,1739173852097,-1628.02,0.00013013,2]
[352571545,1739173852107,-500.0,0.00013013,2]
[352571546,1739173852115,-837.58,0.00013013,2]
[352571547,1739173852125,-762.41,0.00013013,2]
[352571548,1739173852134,-1904.32,0.00013013,2]
[352571549,1739173852143,-849.42,0.00013013,2]
[352571550,1739173852152,-925.35,0.00013013,2]
[352571551,1739173852161,-878.8,0.00013013,2]
[352571552,1739173852171,-1541.79,0.00013013,2]
[352571553,1739173852179,-477.84,0.00013013,2]
[352571554,1739173852189,-700.89,0.00013013,2]
[352571555,1739173852199,-161.424521,0.00013013,2]
[352571556,1739173852277,-161.424521,0.00013013,2]
[352571557,1739173852295,-587.98,0.00013013,2]
[352571558,1739173852305,-1948.67,0.00013013,2]
[352571559,1739173852314,-886.37,0.00013013,2]
[352571560,1739173852324,-675.282182,0.00013013,2]
[352571561,1739173852333,-675.282182,0.00013013,2]
[352571562,1739173852343,-11555.29,0.00013013,2]
[352571563,1739173852352,-3567.19,0.00013013,2]
[352571564,1739173852361,-1981.93,0.00013013,2]
[352571565,1739173852371,-1014.01,0.00013013,2]
[352571566,1739173852380,-566.83,0.0001315,2]
[352571567,1739173852389,-500.0,0.0001315,2]
[352571568,1739173852399,-598.1,0.0001315,2]
[352571569,1739173852410,-500.0,0.0001315,2]
[352571570,1739173852419,-636.99,0.0001315,2]
[352571571,1739173852428,-753.01,0.0001315,2]
[352571572,1739173852438,-500.0,0.0001315,2]
[352571573,1739173852448,-500.0,0.0001315,2]
[352571574,1739173852457,-500.0,0.0001315,2]
[352571575,1739173852467,-500.0,0.0001315,2]
[352571576,1739173852477,-582.61,0.0001315,2]
[352571577,1739173852487,-500.0,0.0001315,2]
[352571578,1739173852496,-500.0,0.0001315,2]
[352571579,1739173852505,-1011.4,0.0001315,2]
[352571580,1739173852515,-151.0,0.0001315,2]
[352571581,1739173852526,-500.0,0.0001315,2]
[352571582,1739173852536,-500.0,0.0001315,2]
[352571583,1739173852546,-2327.36,0.0001315,2]
[352571584,1739173852555,-2167.03,0.0001315,2]
[352571585,1739173852565,-500.0,0.0001315,2]
[352571586,1739173852575,-1786.78,0.0001315,2]
[352571587,1739173852584,-1046.24,0.0001315,2]
[352571588,1739173852593,-737.05,0.0001315,2]
[352571589,1739173852603,-699.77,0.0001315,2]
[352571590,1739173852612,-889.57,0.0001315,2]
[352571591,1739173852622,-24674.75,0.0001315,2]
[352571592,1739173852632,-1381.02,0.0001315,2]
[352571593,1739173852642,-3775.41,0.0001315,2]
[352571594,1739173852651,-1106.43,0.0001315,2]
[352571595,1739173852660,-615.18,0.0001315,2]
[352571596,1739173852669,-500.0,0.0001315,2]
[352571597,1739173852679,-1821.24,0.0001315,2]
[352571598,1739173852688,-586.55,0.0001315,2]
[352571599,1739173852698,-612.13,0.0001315,2]
[352571600,1739173852708,-500.0,0.0001315,2]
[352571601,1739173852717,-5292.78,0.0001315,2]
[352571602,1739173852727,-1628.02,0.0001315,2]